fUST/lending_fUST_20250425
["ID","MTS","AMOUNT","RATE_DAILY","PERIOD"]
[358889038,1745526661619,-500.0,0.00017808,2]
[358889039,1745526661632,-1212.13,0.00017808,2]
[358889040,1745526661643,-500.0,0.00017808,2]
[358889041,1745526661654,-1139.41,0.00017808,2]
[358889042,1745526661665,-969.05,0.00017808,2]
[358889043,1745526661676,-554.12,0.00017808,2]
[358889044,1745526661688,-7415.82,0.00017808,2]
[358889045,1745526661697,-649.82,0.00017808,2]
[358889046,1745526661706,-1585.51,0.00017808,2]
[358889047,1745526661716,-524.26,0.00017808,2]
[358889048,1745526661727,-500.0,0.00017808,2]
[358889049,1745526661738,-1279.97,0.00017808,2]
[358889050,1745526661747,-882.46,0.00017808,2]
[358889051,1745526661770,-1195.42,0.00017808,2]
[358889052,1745526661789,-3728.03,0.00017808,2]
[358889053,1745526661809,-926.64,0.00017808,2]
[358889054,1745526661829,-956.66,0.00017808,2]
[358889055,1745526661848,-500.0,0.00017808,2]
[358889056,1745526661865,-4018.04,0.00017808,2]
[358889057,1745526661885,-500.0,0.00017808,2]
[358889058,1745526661901,-500.0,0.00017808,2]
[358889059,1745526661919,-1456.1,0.00017808,2]
[358889060,1745526661939,-500.0,0.00017808,2]
[358889061,1745526661961,-621.0,0.00017808,2]
[358889062,1745526661974,-500.0,0.00017808,2]
[358889063,1745526661992,-1556.57,0.00017808,2]
[358889064,1745526662009,-500.0,0.00017808,2]
[358889065,1745526662027,-503.41,0.00017808,2]
[358889066,1745526662041,-500.0,0.00017808,2]
[358889067,1745526662058,-3722.25,0.00017808,2]
[358889068,1745526662074,-500.0,0.00017808,2]
[358889069,1745526662090,-500.0,0.00017808,2]
[358889070,1745526662107,-1066.21,0.00017808,2]
[358889071,1745526662123,-764.85,0.00017808,2]
[358889072,1745526662138,-500.0,0.00017808,2]
[358889073,1745526662154,-6011.56,0.00017808,2]
[358889074,1745526662170,-500.0,0.00017808,2]
[358889075,1745526662186,-552.02,0.00017808,2]
[358889076,1745526662200,-1306.11,0.00017808,2]
[358889077,1745526662216,-500.0,0.00017808,2]
[358889078,1745526662232,-1026.32,0.00017808,2]
[358889079,1745526662248,-500.0,0.00017808,2]
[358889080,1745526662263,-1392.64,0.00017808,2]
[358889081,1745526662279,-500.0,0.00017808,2]
[358889082,1745526662295,-500.0,0.00017808,2]
[358889083,1745526662311,-1651.15,0.00017808,2]
[358889084,1745526662326,-500.0,0.00017808,2]
[358889085,1745526662343,-500.0,0.00017808,2]
[358889086,1745526662358,-999.65,0.00017808,2]
[358889087,1745526662375,-3945.93,0.00017808,2]
[358889088,1745526662390,-500.0,0.00017808,2]
[358889089,1745526662407,-4974.04,0.00017808,2]
[358889090,1745526662422,-500.0,0.00017808,2]
[358889091,1745526662438,-500.0,0.00017808,2]
[358889092,1745526662456,-2888.58,0.00017808,2]
[358889093,1745526662472,-861.75,0.00017808,2]
[358889094,1745526662487,-500.0,0.00017808,2]
[358889095,1745526662502,-500.0,0.00017808,2]
[358889096,1745526662520,-4006.34,0.00017808,2]
[358889097,1745526662535,-552.31,0.00017808,2]
[358889098,1745526662551,-1004.47,0.00017808,2]
[358889099,1745526662569,-783.94,0.00017808,2]
[358889100,1745526662584,-1040.42,0.00017808,2]
[358889101,1745526662600,-500.0,0.00017808,2]
[358889102,1745526662617,-8294.01,0.00017808,2]
[358889103,1745526662633,-660.14,0.00017808,2]
[358889104,1745526662649,-3874.07,0.00017808,2]
[358889105,1745526662667,-5979.51,0.00017808,2]
[358889106,1745526662684,-708.16,0.00017808,2]
[358889107,1745526662699,-535.44,0.00017808,2]
[358889108,1745526662715,-2825.52,0.00017808,2]
[358889109,1745526662730,-730.62,0.00017808,2]
[358889110,1745526662745,-878.48,0.00017808,2]
[358889111,1745526662761,-1679.92,0.00017808,2]
[358889112,1745526662776,-695.34,0.00017808,2]
[358889113,1745526662792,-758.24,0.00017808,2]
[358889114,1745526662802,-497.46264604,0.00017808,2]
[358889115,1745526662812,-500.0,0.00017808,2]
[358889116,1745526662821,-920.03,0.00017808,2]
[358889117,1745526663026,-3859.28,0.00017808,2]
[358889118,1745526663036,-250.0,0.00017865,2]
[358889119,1745526663047,-256.3454,0.00017907,2]
[358889120,1745526663058,-500.0,0.00017964,2]
[358889121,1745526663069,-500.0,0.00017964,2]
[358889122,1745526663079,-500.0,0.00017964,2]
[358889123,1745526663093,-1181.18,0.00017964,2]
[358889124,1745526663104,-500.0,0.00017964,2]
[358889125,1745526663114,-614.98,0.00017964,2]
[358889126,1745526663125,-500.0,0.00017964,2]
[358889127,1745526663135,-500.0,0.00017964,2]
[358889128,1745526663146,-1297.41,0.00017964,2]
[358889129,1745526663156,-567.86,0.00017964,2]
[358889130,1745526663166,-500.0,0.00017964,2]
[358889131,1745526663176,-500.0,0.00017964,2]
[358889132,1745526663186,-572.75,0.00017964,2]
[358889133,1745526663196,-500.0,0.00017964,2]
[358889134,1745526663206,-500.0,0.00017964,2]
[358889135,1745526663216,-500.0,0.00017964,2]
[358889136,1745526663226,-500.0,0.00017964,2]
[358889137,1745526663236,-500.0,0.00017964,2]
[358889138,1745526663247,-500.0,0.00017964,2]
[358889139,1745526663256,-500.0,0.00017964,2]
[358889140,1745526663266,-500.0,0.00017964,2]
[358889141,1745526663276,-500.0,0.00017964,2]
[358889142,1745526663286,-523.11,0.00017964,2]
[358889143,1745526663295,-500.0,0.00017964,2]
[358889144,1745526663304,-500.0,0.00017964,2]
[358889145,1745526663313,-1317.7,0.00017964,2]
[358889146,1745526663323,-500.0,0.00017964,2]
[358889147,1745526663332,-1211.14,0.00017964,2]
[358889148,1745526663343,-669.66,0.00017964,2]
[358889149,1745526663352,-882.89,0.00017964,2]
[358889150,1745526663362,-500.0,0.00017964,2]
[358889151,1745526663371,-500.0,0.00017964,2]
[358889152,1745526663381,-500.0,0.00017964,2]
[358889153,1745526663390,-500.0,0.00017964,2]
[358889154,1745526663400,-500.0,0.00017964,2]
[358889155,1745526663409,-514.68,0.00017964,2]
[358889156,1745526663418,-349.55820329,0.00017964,2]
[358889157,1745526663429,-521.25,0.00017964,2]
[358889158,1745526663439,-520.69,0.00017964,2]
[358889159,1745526663449,-500.0,0.00017964,2]
[358889160,1745526663458,-500.0,0.00017964,2]
[358889161,1745526663468,-1504.2,0.00017964,2]
[358889162,1745526663478,-688.33,0.00017964,2]
[358889163,1745526663488,-500.0,0.00017964,2]
[358889164,1745526663498,-500.0,0.00017964,2]
[358889165,1745526663508,-500.0,0.00017964,2]
[358889166,1745526663517,-531.03,0.00017964,2]
[358889167,1745526663527,-500.0,0.00017964,2]
[358889168,1745526663536,-500.0,0.00017964,2]
[358889169,1745526663546,-500.0,0.00017964,2]
[358889170,1745526663556,-500.0,0.00017964,2]
[358889171,1745526663567,-500.0,0.00017964,2]
[358889172,1745526663577,-560.37,0.00017964,2]
[358889173,1745526663587,-605.83,0.00017964,2]
[358889174,1745526663597,-791.06,0.00017964,2]
[358889175,1745526663607,-500.0,0.00017964,2]
[358889176,1745526663617,-439.63015591,0.00017964,2]
[358889177,1745526663626,-151.244324,0.00017967,2]
[358889178,1745526663635,-151.0,0.00017967,2]
[358889179,1745526663647,-151.0,0.00017975,2]
[358889180,1745526663657,-207.108825,0.00017975,2]
[358889181,1745526663667,-207.108824,0.00017975,2]
[358889182,1745526663676,-294.274334,0.00017975,2]
[358889183,1745526663685,-179.9820018,0.00017994,2]
[358889184,1745526663694,-450.0,0.00018,2]
[358889185,1745526663703,-619.02052163,0.0001807,2]
[358889186,1745526663713,-631.67,0.0001807,2]
[358889187,1745526663723,-2614.74,0.0001807,2]
[358889188,1745526663733,-500.0,0.0001807,2]
[358889189,1745526663742,-1066.72,0.0001807,2]
[358889190,1745526663752,-687.1,0.0001807,2]
[358889191,1745526663761,-500.0,0.0001807,2]
[358889192,1745526663770,-757.35,0.0001807,2]
[358889193,1745526663780,-1615.76,0.0001807,2]
[358889194,1745526663790,-500.0,0.0001807,2]
[358889195,1745526663799,-3355.88,0.0001807,2]
[358889196,1745526663808,-988.34,0.0001807,2]
[358889197,1745526663817,-1532.52,0.0001807,2]
[358889198,1745526663827,-1718.81,0.0001807,2]
[358889199,1745526663837,-500.0,0.0001807,2]
[358889200,1745526663847,-151.0,0.00018071,2]
[358889201,1745526663856,-151.0,0.00018071,2]
[358889202,1745526663865,-500.0,0.00018073,2]
[358889203,1745526663875,-500.0,0.00018073,2]
[358889204,1745526663884,-500.0,0.00018073,2]
[358889205,1745526663893,-500.0,0.00018073,2]
[358889206,1745526663902,-500.0,0.00018073,2]
[358889207,1745526663912,-754.75,0.00018082,2]
[358889208,1745526663921,-500.0,0.00018082,2]
[358889209,1745526663931,-695.44,0.00018082,2]
[358889210,1745526663941,-1055.37,0.00018082,2]
[358889211,1745526663950,-1245.69,0.00018082,2]
[358889212,1745526663959,-500.0,0.00018082,2]
[358889213,1745526663969,-522.19,0.00018082,2]
[358889214,1745526663979,-1221.65,0.00018082,2]
[358889215,1745526663988,-771.76,0.00018082,2]
[358889216,1745526663998,-1369.53,0.00018082,2]
[358889217,1745526664008,-500.0,0.00018082,2]
[358889218,1745526664018,-952.16,0.00018082,2]
[358889219,1745526664028,-500.0,0.00018082,2]
[358889220,1745526664038,-500.0,0.00018082,2]
[358889221,1745526664048,-758.46,0.00018082,2]
[358889222,1745526664058,-747.35,0.00018082,2]
[358889223,1745526664068,-1264.07,0.00018082,2]
[358889224,1745526664077,-804.48,0.00018082,2]
[358889225,1745526664090,-881.35,0.00018082,2]
[358889226,1745526664099,-500.0,0.00018082,2]
[358889227,1745526664109,-926.66,0.00018082,2]
[358889228,1745526664119,-500.0,0.00018082,2]
[358889229,1745526664129,-500.0,0.00018082,2]
[358889230,1745526664140,-500.0,0.00018082,2]
[358889231,1745526664150,-741.19,0.00018082,2]
[358889232,1745526664160,-737.62,0.00018082,2]
[358889233,1745526664170,-1548.69,0.00018082,2]
[358889234,1745526664179,-500.0,0.00018082,2]
[358889235,1745526664189,-500.0,0.00018082,2]
[358889236,1745526664199,-1490.32,0.00018082,2]
[358889237,1745526664208,-500.0,0.00018082,2]
[358889238,1745526664218,-500.0,0.00018082,2]
[358889239,1745526664228,-1212.13,0.00018082,2]
[358889240,1745526664238,-500.0,0.00018082,2]
[358889241,1745526664247,-1139.41,0.00018082,2]
[358889242,1745526664257,-969.05,0.00018082,2]
[358889243,1745526664266,-554.12,0.00018082,2]
[358889244,1745526664276,-7415.82,0.00018082,2]
[358889245,1745526664285,-649.82,0.00018082,2]
[358889246,1745526664295,-1585.51,0.00018082,2]
[358889247,1745526664304,-524.26,0.00018082,2]
[358889248,1745526664314,-1279.97,0.00018082,2]
[358889249,1745526664324,-882.46,0.00018082,2]
[358889250,1745526664333,-1195.42,0.00018082,2]
[358889251,1745526664343,-3728.03,0.00018082,2]
[358889252,1745526664354,-926.64,0.00018082,2]
[358889253,1745526664363,-956.66,0.00018082,2]
[358889254,1745526664373,-500.0,0.00018082,2]
[358889255,1745526664383,-4018.04,0.00018082,2]
[358889256,1745526664393,-500.0,0.00018082,2]
[358889257,1745526664402,-500.0,0.00018082,2]
[358889258,1745526664411,-1456.1,0.00018082,2]
[358889259,1745526664421,-500.0,0.00018082,2]
[358889260,1745526664432,-621.0,0.00018082,2]
[358889261,1745526664442,-500.0,0.00018082,2]
[358889262,1745526664452,-1556.57,0.00018082,2]
[358889263,1745526664463,-206.14561675,0.00018082,2]
[358889264,1745526664472,-503.41,0.00018082,2]
[358889265,1745526664482,-500.0,0.00018082,2]
[358889266,1745526664492,-3722.25,0.00018082,2]
[358889267,1745526664502,-500.0,0.00018082,2]
[358889268,1745526664512,-500.0,0.00018082,2]
[358889269,1745526664523,-1066.21,0.00018082,2]
[358889270,1745526664534,-764.85,0.00018082,2]
[358889271,1745526664544,-280.49403536,0.00018082,2]
[358889272,1745526664555,-6011.56,0.00018082,2]
[358889273,1745526664569,-500.0,0.00018082,2]
[358889274,1745526664580,-552.02,0.00018082,2]
[358889275,1745526664591,-1306.11,0.00018082,2]
[358889276,1745526664600,-500.0,0.00018082,2]
[358889277,1745526664611,-1026.32,0.00018082,2]
[358889278,1745526664621,-500.0,0.00018082,2]
[358889279,1745526664630,-1392.64,0.00018082,2]
[358889280,1745526664642,-500.0,0.00018082,2]
[358889281,1745526664653,-500.0,0.00018082,2]
[358889282,1745526664662,-588.13393309,0.00018082,2]
[358889283,1745526664958,-1063.01606691,0.00018082,2]
[358889284,1745526664969,-500.0,0.00018082,2]
[358889285,1745526664981,-500.0,0.00018082,2]
[358889286,1745526664991,-3945.93,0.00018082,2]
[358889287,1745526665158,-999.65,0.00018082,2]
[358889288,1745526665169,-500.0,0.00018082,2]
[358889289,1745526665179,-4974.04,0.00018082,2]
[358889290,1745526665189,-584.11675788,0.00018082,2]
[358889291,1745526665200,-500.0,0.00018082,2]
[358889292,1745526665210,-2888.58,0.00018082,2]
[358889293,1745526665220,-861.75,0.00018082,2]
[358889294,1745526665230,-500.0,0.00018082,2]
[358889295,1745526665241,-500.0,0.00018082,2]
[358889296,1745526665250,-4006.34,0.00018082,2]
[358889297,1745526665260,-552.31,0.00018082,2]
[358889298,1745526665274,-1004.47,0.00018082,2]
[358889299,1745526665284,-783.94,0.00018082,2]
[358889300,1745526665294,-1040.42,0.00018082,2]
[358889301,1745526665303,-500.0,0.00018082,2]
[358889302,1745526665313,-8294.01,0.00018082,2]
[358889303,1745526665324,-660.14,0.00018082,2]
[358889304,1745526665334,-3874.07,0.00018082,2]
[358889305,1745526665344,-5979.51,0.00018082,2]
[358889306,1745526665353,-708.16,0.00018082,2]
[358889307,1745526665363,-535.44,0.00018082,2]
[358889308,1745526665374,-2825.52,0.00018082,2]
[358889309,1745526665384,-730.62,0.00018082,2]
[358889310,1745526665394,-878.48,0.00018082,2]
[358889311,1745526665403,-1679.92,0.00018082,2]
[358889312,1745526665413,-695.34,0.00018082,2]
[358889313,1745526665422,-758.24,0.00018082,2]
[358889314,1745526665433,-500.0,0.00018082,2]
[358889315,1745526665443,-920.03,0.00018082,2]
[358889316,1745526665454,-174.8338161,0.00018082,2]
[358889317,1745526665463,-1259.8023531,0.00018082,2]
[358889318,1745526665476,-349.6676322,0.00018082,2]
[358889319,1745526665486,-562847.85093951,0.00018087,2]
[358889320,1745526665979,-500.0,0.00016438,2]
[358889321,1745526665989,-450.50085557,0.00016438,2]
[358889327,1745526936290,427.3802866,0.00014795,2]
[358889328,1745526951043,24900.0,0.00014795,2]
[358889330,1745527120553,208.106,0.00014865,2]
[358889331,1745527156050,183.902004,0.00014472,2]
[358889332,1745527192042,678.70675291,0.00014967,2]
[358889336,1745527378908,6631.59708075,0.00014964,2]
[358889337,1745527380707,15618.2684994,0.00014715,2]
[358889338,1745527549728,250.0,0.00014486,2]
[358889339,1745527649118,-300.0,0.0001506,2]
[358889340,1745527649142,-260.18070285,0.00015061,2]
[358889341,1745527649166,-500.0,0.00015061,2]
[358889342,1745527649189,-500.0,0.00015061,2]
[358889343,1745527649211,-257.92785511,0.00015061,2]
[358889344,1745527649241,-2067.4233529,0.00015061,2]
[358889345,1745527649266,-500.0,0.00015061,2]
[358889346,1745527649289,-500.0,0.00015061,2]
[358889347,1745527649311,-500.0,0.00015061,2]
[358889348,1745527649334,-500.0,0.00015061,2]
[358889349,1745527649364,-2067.4233529,0.00015061,2]
[358889350,1745527649385,-289.40636503,0.00015061,2]
[358889351,1745527649413,-2067.4233529,0.00015061,2]
[358889352,1745527649436,-500.0,0.00015061,2]
[358889353,1745527649706,-500.0,0.00015061,2]
[358889354,1745527649729,-500.0,0.00015061,2]
[358889355,1745527649757,-2067.4233529,0.00015061,2]
[358889356,1745527649778,-500.0,0.00015061,2]
[358889357,1745527649799,-433.21182978,0.00015061,2]
[358889358,1745527649818,-500.0,0.00015061,2]
[358889359,1745527649844,-2067.4233529,0.00015061,2]
[358889360,1745527649866,-500.0,0.00015061,2]
[358889361,1745527649893,-2067.4233529,0.00015061,2]
[358889362,1745527649916,-500.0,0.00015061,2]
[358889363,1745527649938,-500.0,0.00015061,2]
[358889364,1745527649965,-2067.4233529,0.00015061,2]
[358889365,1745527649989,-500.0,0.00015061,2]
[358889366,1745527650011,-500.0,0.00015061,2]
[358889367,1745527650039,-2067.4233529,0.00015061,2]
[358889368,1745527650062,-500.0,0.00015061,2]
[358889369,1745527650100,-2067.4233529,0.00015061,2]
[358889370,1745527650123,-500.0,0.00015061,2]
[358889371,1745527650151,-2067.4233529,0.00015061,2]
[358889372,1745527650173,-500.0,0.00015061,2]
[358889373,1745527650202,-2067.4233529,0.00015061,2]
[358889374,1745527650229,-437.62823022,0.00015061,2]
[358889375,1745527650258,-15.78754324,0.00015061,2]
[358889376,1745527719435,5305.2776646,0.00014961,2]
[358889377,1745527762088,-300.0,0.00015059,2]
[358889378,1745527762112,-500.0,0.0001506,2]
[358889379,1745527762133,-190.22100468,0.0001506,2]
[358889380,1745527762156,-214.80131442,0.0001506,2]
[358889381,1745527762179,-500.0,0.0001506,2]
[358889382,1745527762212,-500.0,0.0001506,2]
[358889383,1745527762235,-326.40313669,0.0001506,2]
[358889384,1745527762262,-618.99946902,0.0001506,2]
[358889385,1745527762287,-6067.93548399,0.0001506,2]
[358889386,1745527762313,-6067.93548399,0.0001506,2]
[358889387,1745527762338,-6067.93548399,0.0001506,2]
[358889388,1745527762362,-6067.93548399,0.0001506,2]
[358889389,1745527762386,-6067.93548399,0.0001506,2]
[358889390,1745527762413,-6067.93548399,0.0001506,2]
[358889391,1745527762439,-5163.40803939,0.0001506,2]
[358889410,1745527832254,-300.0,0.00015059,2]
[358889411,1745527832264,-900.0,0.00015059,2]
[358889412,1745527832274,-300.0,0.00015059,2]
[358889413,1745527832284,-904.5274446,0.0001506,2]
[358889414,1745527832293,-4.44079801,0.0001506,2]
[358889434,1745527838474,-483.15470328,0.00015058,2]
[358889435,1745527838484,-4169.64661164,0.0001506,2]
[358889436,1745527838496,-1898.28887235,0.0001506,2]
[358889437,1745527838505,-6067.93548399,0.0001506,2]
[358889438,1745527838515,-6067.93548399,0.0001506,2]
[358889439,1745527838524,-6067.93548399,0.0001506,2]
[358889440,1745527838534,-6067.93548399,0.0001506,2]
[358889441,1745527838543,-6067.93548399,0.0001506,2]
[358889442,1745527838553,-6067.93548399,0.0001506,2]
[358889443,1745527838562,-6067.93548399,0.0001506,2]
[358889444,1745527838572,-6067.93548399,0.0001506,2]
[358889445,1745527838582,-6067.93548399,0.0001506,2]
[358889446,1745527838591,-6067.93548399,0.0001506,2]
[358889447,1745527838601,-6067.93548399,0.0001506,2]
[358889448,1745527838610,-6067.93548399,0.0001506,2]
[358889449,1745527838619,-6067.93548399,0.0001506,2]
[358889450,1745527838628,-6067.93548399,0.0001506,2]
[358889451,1745527838638,-6067.93548399,0.0001506,2]
[358889452,1745527838647,-6067.93548399,0.0001506,2]
[358889453,1745527838656,-6067.93548399,0.0001506,2]
[358889454,1745527838665,-6067.93548399,0.0001506,2]
[358889455,1745527838675,-6067.93548399,0.0001506,2]
[358889456,1745527838685,-6067.93548399,0.0001506,2]
[358889457,1745527838694,-6067.93548399,0.0001506,2]
[358889458,1745527838703,-6067.93548399,0.0001506,2]
[358889459,1745527838713,-6067.93548399,0.0001506,2]
[358889460,1745527838723,-6067.93548399,0.0001506,2]
[358889461,1745527838732,-6047.70903237,0.0001506,2]
[358889462,1745527838741,-6047.70903237,0.0001506,2]
[358889463,1745527838751,-6047.70903237,0.0001506,2]
[358889464,1745527838759,-6047.70903237,0.0001506,2]
[358889465,1745527838769,-6047.70903237,0.0001506,2]
[358889466,1745527838778,-6047.70903237,0.0001506,2]
[358889467,1745527838788,-6047.70903237,0.0001506,2]
[358889468,1745527838797,-6047.70903237,0.0001506,2]
[358889469,1745527838806,-6047.70903237,0.0001506,2]
[358889470,1745527838815,-6047.70903237,0.0001506,2]
[358889471,1745527838824,-6047.70903237,0.0001506,2]
[358889472,1745527838834,-6047.70903237,0.0001506,2]
[358889473,1745527838843,-6047.70903237,0.0001506,2]
[358889474,1745527838852,-6047.70903237,0.0001506,2]
[358889475,1745527838861,-6047.70903237,0.0001506,2]
[358889476,1745527838870,-6047.70903237,0.0001506,2]
[358889477,1745527838879,-6047.70903237,0.0001506,2]
[358889478,1745527838888,-6047.70903237,0.0001506,2]
[358889479,1745527838897,-6047.70903237,0.0001506,2]
[358889480,1745527838906,-6047.70903237,0.0001506,2]
[358889481,1745527838915,-5291.74540332,0.0001506,2]
[358889482,1745527838925,-5291.74540332,0.0001506,2]
[358889483,1745527838934,-5291.74540332,0.0001506,2]
[358889484,1745527838943,-5291.74540332,0.0001506,2]
[358889485,1745527838952,-5291.74540332,0.0001506,2]
[358889486,1745527839156,-5291.74540332,0.0001506,2]
[358889487,1745527839166,-5291.74540332,0.0001506,2]
[358889488,1745527839175,-5291.74540332,0.0001506,2]
[358889489,1745527839185,-5291.74540332,0.0001506,2]
[358889490,1745527839195,-5291.74540332,0.0001506,2]
[358889491,1745527839204,-5291.74540332,0.0001506,2]
[358889492,1745527839213,-5291.74540332,0.0001506,2]
[358889493,1745527839222,-5291.74540332,0.0001506,2]
[358889494,1745527839231,-5291.74540332,0.0001506,2]
[358889495,1745527839240,-5291.74540332,0.0001506,2]
[358889496,1745527839250,-5291.74540332,0.0001506,2]
[358889497,1745527839259,-5291.74540332,0.0001506,2]
[358889498,1745527839269,-5291.74540332,0.0001506,2]
[358889499,1745527839278,-5291.74540332,0.0001506,2]
[358889500,1745527839288,-5291.74540332,0.0001506,2]
[358889501,1745527839299,-5291.74540332,0.0001506,2]
[358889502,1745527839309,-5291.74540332,0.0001506,2]
[358889503,1745527839319,-5291.74540332,0.0001506,2]
[358889504,1745527839328,-1427.25888605,0.0001506,2]
[358889505,1745527839337,-965.29090054,0.0001506,2]
[358889506,1745527839347,-965.29090054,0.0001506,2]
[358889507,1745527839356,-965.29090054,0.0001506,2]
[358889508,1745527839365,-965.29090054,0.0001506,2]
[358889509,1745527839375,-965.29090054,0.0001506,2]
[358889510,1745527839384,-965.29090054,0.0001506,2]
[358889511,1745527839393,-212.56106331,0.00015072,2]
[358889512,1745527839403,-250.0,0.00015172,2]
[358889513,1745527839412,-1000.0,0.00015172,2]
[358889514,1745527839422,-436.45107106,0.00015173,2]
[358889515,1745527839431,-500.0,0.00015173,2]
[358889516,1745527839441,-151.0,0.00015272,2]
[358889517,1745527839451,-5305.27766456,0.00015305,2]
[358889518,1745527839461,-5305.27766456,0.0001565,2]
[358889519,1745527839470,-281.8257478,0.00015684,2]
[358889520,1745527839480,-11133.43474444,0.00015888,2]
[358889521,1745527839490,-1387.5280361,0.00015983,2]
[358889522,1745527839499,-5305.27766456,0.00015994,2]
[358889523,1745527839509,-151.0,0.00016271,2]
[358889524,1745527839520,-5305.27766456,0.00016338,2]
[358889525,1745527839530,-593.84641577,0.00016369,2]
[358889526,1745527839539,-500.0,0.00016438,2]
[358889527,1745527839549,-500.0,0.00016438,2]
[358889528,1745527839558,-500.0,0.00016438,2]
[358889529,1745527839568,-230.606272,0.00016438,2]
[358889530,1745527839577,-328.63836151,0.00016438,2]
[358889531,1745527839587,-500.0,0.00016438,2]
[358889532,1745527839596,-500.0,0.00016438,2]
[358889533,1745527839605,-500.0,0.00016438,2]
[358889534,1745527839615,-500.0,0.00016438,2]
[358889535,1745527839624,-500.0,0.00016438,2]
[358889536,1745527839634,-500.0,0.00016438,2]
[358889537,1745527839643,-500.0,0.00016438,2]
[358889538,1745527839652,-500.0,0.00016438,2]
[358889539,1745527839662,-500.0,0.00016438,2]
[358889540,1745527839672,-425.28644492,0.00016438,2]
[358889541,1745527839681,-988.27,0.00016438,2]
[358889542,1745527839691,-500.0,0.00016438,2]
[358889543,1745527839700,-502.24,0.00016438,2]
[358889544,1745527839709,-500.0,0.00016438,2]
[358889545,1745527839719,-908.36,0.00016438,2]
[358889546,1745527839728,-500.0,0.00016438,2]
[358889547,1745527839738,-662.16,0.00016438,2]
[358889548,1745527839748,-500.0,0.00016438,2]
[358889549,1745527839759,-500.0,0.00016438,2]
[358889550,1745527839769,-500.0,0.00016438,2]
[358889551,1745527839780,-500.0,0.00016438,2]
[358889552,1745527839790,-1961.05,0.00016438,2]
[358889553,1745527839800,-800.04,0.00016438,2]
[358889554,1745527839809,-500.0,0.00016438,2]
[358889555,1745527839820,-534.62,0.00016438,2]
[358889556,1745527839829,-500.0,0.00016438,2]
[358889557,1745527839839,-515.33,0.00016438,2]
[358889558,1745527839849,-500.0,0.00016438,2]
[358889559,1745527839860,-500.0,0.00016438,2]
[358889560,1745527839869,-500.0,0.00016438,2]
[358889561,1745527839879,-500.0,0.00016438,2]
[358889562,1745527839888,-568.01,0.00016438,2]
[358889563,1745527839898,-500.0,0.00016438,2]
[358889564,1745527839909,-1211.82,0.00016438,2]
[358889565,1745527839921,-1128.15,0.00016438,2]
[358889566,1745527839932,-516.25,0.00016438,2]
[358889567,1745527839941,-500.0,0.00016438,2]
[358889568,1745527839951,-2516.91,0.00016438,2]
[358889569,1745527839961,-500.0,0.00016438,2]
[358889570,1745527839971,-1060.41,0.00016438,2]
[358889571,1745527839982,-500.0,0.00016438,2]
[358889572,1745527839991,-500.0,0.00016438,2]
[358889573,1745527840001,-315.50319428,0.00016438,2]
[358889574,1745527840011,-500.0,0.00016438,2]
[358889575,1745527840021,-500.0,0.00016438,2]
[358889576,1745527840031,-258.66472821,0.00016438,2]
[358889578,1745527840043,-500.0,0.00016438,2]
[358889580,1745527840052,-500.0,0.00016438,2]
[358889582,1745527840062,-741.26,0.00016438,2]
[358889584,1745527840071,-500.0,0.00016438,2]
[358889586,1745527840082,-865.34,0.00016438,2]
[358889587,1745527840092,-1149.39,0.00016438,2]
[358889588,1745527840102,-546.66,0.00016438,2]